Cogmind - Beta 16 @@@ ROGUE MODE // 2025.10.25 @ 17:12:59 Player: WetterLettuce Result: Destroyed by Striker with Plasma Lance Performance ------------- Evolutions (7) 3500 Regions Visited (17) 3400 Robots Destroyed (7) 35 Value Destroyed (308) 308 Prototype IDs (31) 620 Alien Tech Used (2) 400 Bonus (4413) 4413 TOTAL SCORE: 12676 Bonus ------- Follower Combat Kills 813 Entered DSFs 500 Registered with UFD 300 Met Zhirov 300 Scanned by Researcher 500 Acquired SGEMP 2000 Cogmind --------- Core Integrity 0/1300 Matter 227/300 Energy 100/100 System Corruption 2% Temperature Cool (0) Movement Rolling (90) Location -3/Testing Parts ------- > --- POWER (1) -------- (None) > --- PROPULSION (6) --- High-density Centrium Wheel > --- UTILITY (10) ----- Enhanced Optical Array Advanced Signal Interpreter Improved Melee Analysis Suite Advanced Melee Analysis Suite Hacking Suite Advanced Hacking Suite > --- WEAPON (4) ------- (None) > --- INVENTORY (5) ---- Compact Particle Reactor Remote Datajack Peak State ------------ > --- POWER ------------ Micro Antimatter Reactor > --- PROPULSION ------- Gyrokinetic Inverter Improved Gyrokinetic Inverter Improved Linear Gravjet Field Propulsion Array Q-thruster > --- UTILITY ---------- Advanced Energy Well Gravity Neutralizer Advanced Signal Interpreter Improved Melee Analysis Suite Advanced Melee Analysis Suite Hacking Suite Hacking Suite Advanced Hacking Suite > --- WEAPON ----------- (None) > --- INVENTORY -------- Compact Particle Reactor High-density Centrium Wheel Advanced Actuator Array Railgun [Rating: 93] Favorites ----------- Power Light Ion Engine Engine Light Ion Engine Power Core Neutrino Core Reactor Compact Particle Reactor Propulsion Light Treads Treads Light Treads Wheel High-density Centrium Wheel Hover Unit Cooled Gravmag System Flight Unit Nuclear Pulse Thruster Utility Hacking Suite Device Advanced Heat Sink Storage Large Storage Unit Processor Advanced Melee Analysis Suite Hackware Hacking Suite Protection Light Armor Plating Weapon Battle Rifle Energy Gun Plasma Rifle Energy Cannon Phase Cannon Ballistic Gun Battle Rifle Ballistic Cannon Gauss Cannon Special Weapon Remote Datajack Piercing Weapon Spear Build | -11 -10 -10 -9 -6 -6 -6 -6 -5 -5 -5 -5 -5 -5 -4 -4 -3 -3 ------- Run | Yrd Mat Sub Scr Fac Was Fac DSF Fac Was Fac Upp Upp Zhi Pro Fac Res Tes Slots Evolved 14 | . . . . 8 . . . 2 . . . . . . 2 2 . Power . | . . . . . . . . . . . . . . . . . . Propulsion 4 | . . . . 2 . . . 1 . . . . . . . 1 . Utility 8 | . . . . 4 . . . 1 . . . . . . 2 1 . Weapon 2 | . . . . 2 . . . . . . . . . . . . . Parts Attached 75 | 6 2 2 5 11 . 4 2 3 1 6 1 2 4 2 11 4 9 Power 8 | 1 . . 1 1 . . . . . 1 1 . . 1 . . 2 Engine 3 | 1 . . 1 . . . . . . . 1 . . . . . . Core 3 | . . . . 1 . . . . . 1 . . . 1 . . . Reactor 2 | . . . . . . . . . . . . . . . . . 2 Propulsion 24 | 2 . . 2 3 . 1 1 . . 2 . . 3 . 3 4 3 Treads 7 | 2 . . 2 2 . . 1 . . . . . . . . . . Leg . | . . . . . . . . . . . . . . . . . . Wheel 1 | . . . . . . . . . . . . . . . . . 1 Hover 9 | . . . . . . . . . . . . . 3 . 3 2 1 Flight 7 | . . . . 1 . 1 . . . 2 . . . . . 2 1 Utility 31 | 1 2 . . 4 . 3 1 2 1 3 . 2 1 1 7 . 3 Device 7 | . . . . . . . . . 1 1 . . . 1 3 . 1 Storage 3 | 1 1 . . . . . . . . . . . . . . . 1 Processor 12 | . 1 . . 2 . 3 . . . 1 . 1 . . 3 . 1 Hackware 7 | . . . . 1 . . 1 2 . 1 . 1 1 . . . . Protection 2 | . . . . 1 . . . . . . . . . . 1 . . Artifact . | . . . . . . . . . . . . . . . . . . Weapon 12 | 2 . 2 2 3 . . . 1 . . . . . . 1 . 1 Energy Gun 1 | . . . 1 . . . . . . . . . . . . . . Energy Cannon 1 | . . . . 1 . . . . . . . . . . . . . Ballistic Gun 6 | 2 . 2 . 1 . . . . . . . . . . 1 . . Ballistic Cannon 2 | . . . 1 1 . . . . . . . . . . . . . Launcher . | . . . . . . . . . . . . . . . . . . Special Weapon 1 | . . . . . . . . . . . . . . . . . 1 Impact Weapon . | . . . . . . . . . . . . . . . . . . Slashing Weapon . | . . . . . . . . . . . . . . . . . . Piercing Weapon 1 | . . . . . . . . 1 . . . . . . . . . Special Melee Weapon . | . . . . . . . . . . . . . . . . . . Unidentified Prototypes 11 | . . . . 2 . . . . . . . 1 1 . 3 . 4 Parts Lost 35 | . . . . . 5 . 2 . . 1 1 2 . . 9 8 7 Power 2 | . . . . . . . . . . . 1 . . . . 1 . Propulsion 17 | . . . . . 2 . . . . 1 . 1 . . 3 5 5 Utility 13 | . . . . . 1 . 2 . . . . 1 . . 5 2 2 Weapon 3 | . . . . . 2 . . . . . . . . . 1 . . Highest Loss Streak 8 | . . . . . 5 . 2 . . 1 1 2 . . 4 8 7 To Critical Strikes . | . . . . . . . . . . . . . . . . . . Average Backups 8 | . 8 14 12 9 9 3 3 3 3 4 3 3 3 3 3 3 3 Power . | . 1 1 1 2 1 . . . . . . . . . . . . Propulsion 2 | . . 2 3 4 3 2 1 1 1 . . . . . . 1 . Utility 4 | . 4 8 6 2 4 1 2 2 1 1 2 3 2 1 . 1 . Weapon 1 | . 1 3 1 . . . . . 1 2 . . . . . . . Tool/Special . | . . . . . . . . . . . . . . . . . . Unused Backups 15 | . 1 3 5 . 3 . . . . 1 1 . 1 . . . . Power 1 | . . . . . 1 . . . . . . . . . . . . Propulsion 1 | . . . . . . . . . . 1 . . . . . . . Utility 9 | . . 3 3 . 2 . . . . . . . 1 . . . . Weapon 4 | . 1 . 2 . . . . . . . 1 . . . . . . Tool/Special . | . . . . . . . . . . . . . . . . . . Average Slot Usage (%) 86 | . 96 100 99 97 67 25 44 43 58 66 70 66 71 76 76 66 54 Engine 8 | . 14 14 14 . . . . . 3 1 1 5 5 2 . . . Treads 17 | . 28 28 28 25 15 . 3 . . . . . . . . . . Hover 3 | . . . . . . . . . 2 5 5 5 12 17 23 22 10 Flight 2 | . . . . . . . 6 5 5 9 11 7 5 5 . 1 6 Device 1 | . . . . . . . . . 3 6 5 5 5 5 8 . . Storage 8 | . 14 14 14 6 3 . . . . . . . . . . . 2 Processor 14 | . 10 14 14 19 18 25 30 17 17 15 17 17 14 11 11 18 15 Hackware 6 | . . . . 5 4 . 3 13 17 16 17 16 20 23 21 18 13 Energy Gun 5 | . . . 9 6 3 . . . 5 . . . . . . . . Ballistic Gun 10 | . 28 28 15 . . . . . . . . . . . . 2 . Ballistic Cannon 1 | . . . 2 12 8 . . . . . . . . . . . . Piercing Weapon 1 | . . . . . . . . 5 2 3 5 5 5 5 3 . . Peak Build Rating 93 | 6 8 10 21 48 48 25 30 32 48 59 53 50 70 73 92 92 93 Average Rating 31 | 4 7 8 14 45 32 16 26 31 40 51 52 48 62 71 84 81 74 On Entrance 35 | . 6 8 10 21 48 7 25 23 32 48 53 50 48 70 73 79 43 Avg Prop Armor Cover (%) 9 | . . . . . . . 7 . 5 6 7 7 6 12 4 15 11 Naked Turns . | . . . . . . . . . . . . . . . . . . Heaviest Build 55 | 12 27 27 38 55 55 . . 2 9 11 8 5 5 17 31 20 15 Greatest Support 91 | 40 40 40 48 91 91 6 20 6 8 18 12 12 33 33 71 67 23 Greatest Overweight (x) 1 | . . . . . . . . . 1 . . . . . . . . Average Overweight (x) . | . . . . . . . . . . . . . . . . . . Largest Inventory Capacity 15 | 8 15 15 15 15 15 5 5 5 5 5 5 5 5 5 5 5 5 Average Capacity 11 | 6 12 15 15 15 11 5 5 5 5 5 5 5 5 5 5 5 5 Most Carried 15 | 2 15 15 15 14 13 5 5 4 5 5 5 5 5 5 5 5 5 Average Carried 9 | . 8 14 13 9 10 3 3 2 3 4 4 4 4 4 3 4 3 Final Capacity 15 | 8 15 15 15 15 5 5 5 5 5 5 5 5 5 5 5 5 5 Final Carried 15 | 2 15 15 15 13 5 3 5 2 5 5 4 4 5 5 5 5 2 Class Distribution -------------------- 60% | Mutant 32% | Hacker-Mutant 5% | Derelict-Gunner Dominant Class ---------------- Mutant | -10/Materials Mutant | -10/Subcaves Mutant | -9/Scraptown Derelict-Gunner | -6/Factory Derelict-Gunner | -6/Waste Mutant | -6/Factory Mutant | -6/DSF Mutant | -5/Factory Hacker-Mutant | -5/Waste Hacker-Mutant | -5/Factory Hacker-Mutant | -5/Upper Caves Hacker-Mutant | -5/Upper Caves Hacker-Mutant | -5/Zhirov Hacker-Mutant | -4/Proximity Caves Hacker-Mutant | -4/Factory Hacker-Mutant | -3/Research Hacker-Mutant | -3/Testing Resources | -11 -10 -10 -9 -6 -6 -6 -6 -5 -5 -5 -5 -5 -5 -4 -4 -3 -3 ----------- Run | Yrd Mat Sub Scr Fac Was Fac DSF Fac Was Fac Upp Upp Zhi Pro Fac Res Tes Matter Collected 990 | 194 . 130 58 90 . . . . 170 62 68 26 . 72 . 120 . Remotely . | . . . . . . . . . . . . . . . . . . Salvage Created 334 | . 49 . . . . . . . . 68 . 217 . . . . . Parts 15 | . 3 . . . . . . . . 3 . 9 . . . . . Haulers Intercepted . | . . . . . . . . . . . . . . . . . . Recyclers Shooed . | . . . . . . . . . . . . . . . . . . Parts Field Recycled . | . . . . . . . . . . . . . . . . . . Retrieved Matter . | . . . . . . . . . . . . . . . . . . Parts Self-Destructed 27 | . . 5 . . . . . . . . 5 14 . 3 . . . Prevented 1 | . . . . . . . . . . . 1 . . . . . . Parts Restored . | . . . . . . . . . . . . . . . . . . Kills | -11 -10 -10 -9 -6 -6 -6 -6 -5 -5 -5 -5 -5 -5 -4 -4 -3 -3 ------- Run | Yrd Mat Sub Scr Fac Was Fac DSF Fac Was Fac Upp Upp Zhi Pro Fac Res Tes Combat Hostiles Destroyed 5 | . 1 . . . . . . . . 1 . 3 . . . . . Melee 4 | . . . . . . . . . . 1 . 3 . . . . . Guns 1 | . 1 . . . . . . . . . . . . . . . . Classes Destroyed 5 | . 2 . . . . . . . . 1 . 2 . . . . . Operator 1 | . . . . . . . . . . 1 . . . . . . . Watcher 1 | . 1 . . . . . . . . . . . . . . . . Grunt 2 | . 1 . . . . . . . . 1 . . . . . . . Duelist 2 | . . . . . . . . . . . . 2 . . . . . Sentry 1 | . . . . . . . . . . . . 1 . . . . . Best Kill Streak 3 | . 1 . . . . . . . . 1 . 3 . . . . . Combat Bots Only 3 | . 1 . . . . . . . . 1 . 3 . . . . . Max Kills in Single Turn 1 | . 1 . . . . . . . . 1 . 1 . . . . . Gunslinging . | . . . . . . . . . . . . . . . . . . Exploded . | . . . . . . . . . . . . . . . . . . Melee 1 | . . . . . . . . . . 1 . 1 . . . . . Uniques/NPCs Destroyed . | . . . . . . . . . . . . . . . . . . Combat | -11 -10 -10 -9 -6 -6 -6 -6 -5 -5 -5 -5 -5 -5 -4 -4 -3 -3 -------- Run | Yrd Mat Sub Scr Fac Was Fac DSF Fac Was Fac Upp Upp Zhi Pro Fac Res Tes Hostile Shots Fired 318 | . . 1 . . 5 . 10 . . 8 1 12 . . 118 73 90 Missed 144 | . . . . . . . 6 . . 6 . 6 . . 65 39 22 Hits 174 | . . 1 . . 5 . 4 . . 2 1 6 . . 53 34 68 Melee 25 | . . . . . 5 . 3 . . . . 1 . . . . 16 Projectile 149 | . . 1 . . . . 1 . . 2 1 5 . . 53 34 52 AOE 1 | . . . . . . . 1 . . . . . . . . . . Critical Strikes 10 | . . . . . 3 . 1 . . . . . . . 1 1 4 Damage Taken 4230 | . 39 52 . . 236 . 140 . . 70 93 187 . . 963 764 1686 Core 1888 | . 21 9 . . 99 . 100 . . 32 45 95 . . 150 182 1155 Absorbed by Shields 7 | . . . . . . . . . . . . . . . 7 . . Regen/Repaired (Parts) 352 | . . . 315 . . . . . . 27 10 . . . . . . Core Remaining (%) 85 | 100 . . 88 . . . 76 . . . . . . 82 79 . . Volleys Fired 10 | . 2 2 1 . 3 . . . . . . . . . . 1 1 Largest 3 | . 2 2 2 . 3 . . . . . . . . . . 1 1 Hottest 145 | . 40 40 100 . 145 . . . . . . . . . . 35 5 Shots Fired 19 | . 4 4 2 . 7 . . . . . . . . . . 1 1 Gun 14 | . 4 4 2 . 3 . . . . . . . . . . 1 . Cannon 4 | . . . . . 4 . . . . . . . . . . . . Launcher . | . . . . . . . . . . . . . . . . . . Special 1 | . . . . . . . . . . . . . . . . . 1 Kinetic 14 | . 4 4 1 . 4 . . . . . . . . . . 1 . Thermal 4 | . . . 1 . 3 . . . . . . . . . . . . Explosive . | . . . . . . . . . . . . . . . . . . Electromagnetic . | . . . . . . . . . . . . . . . . . . Robot Hit Streak 8 | . 3 7 . . 8 . . . . . . . . . . . 1 Robot Miss Streak 1 | . . . . . 1 . . . . . . . . . . . . Penetration Max . | . . . . . . . . . . . . . . . . . . Secondary Targets . | . . . . . . . . . . . . . . . . . . Shots Hit Robots 28 | . 3 4 . . 4 . . . . 4 . 9 . . 3 . 1 Core Hits 12 | . 3 . . . . . . . . 1 . 6 . . 1 . 1 Critical Kills 1 | . 1 . . . . . . . . . . . . . . . . Critical Parts Destroyed . | . . . . . . . . . . . . . . . . . . Critical Strikes 3 | . 1 . . . . . . . . 1 . . . . 1 . . Destroy 1 | . 1 . . . . . . . . . . . . . . . . Impale 2 | . . . . . . . . . . 1 . . . . 1 . . Melee Attacks 22 | . . . . . . . . . . 4 1 10 . . 7 . . Impact . | . . . . . . . . . . . . . . . . . . Slashing . | . . . . . . . . . . . . . . . . . . Piercing 22 | . . . . . . . . . . 4 1 10 . . 7 . . Sneak Attacks . | . . . . . . . . . . . . . . . . . . Combat Hostiles . | . . . . . . . . . . . . . . . . . . Follow-up Attacks . | . . . . . . . . . . . . . . . . . . Damage Inflicted 779 | . 33 45 . . 110 . . . . 168 . 282 . . 110 28 3 Guns 148 | . 33 45 . . 42 . . . . . . . . . . 28 . Cannons 68 | . . . . . 68 . . . . . . . . . . . . Explosions . | . . . . . . . . . . . . . . . . . . Melee 560 | . . . . . . . . . . 168 . 282 . . 110 . . Ramming 3 | . . . . . . . . . . . . . . . . . 3 Kinetic 174 | . 33 45 . . 68 . . . . . . . . . . 28 . Thermal 42 | . . . . . 42 . . . . . . . . . . . . Explosive . | . . . . . . . . . . . . . . . . . . Electromagnetic . | . . . . . . . . . . . . . . . . . . Impact . | . . . . . . . . . . . . . . . . . . Slashing . | . . . . . . . . . . . . . . . . . . Piercing 560 | . . . . . . . . . . 168 . 282 . . 110 . . Highest Corruption 8 | . 1 1 . . 8 8 8 . . . 1 1 1 1 2 . 2 Average Corruption 1 | . 1 1 . . 8 8 8 . . . 1 1 1 1 1 . 2 Corruption Purged . | . . . . . . . . . . . . . . . . . . Corruption Blocked . | . . . . . . . . . . . . . . . . . . Effects 19 | . . 3 . . 2 1 1 . . . . 6 1 3 1 . 1 Message Errors 2 | . . . . . 1 . . . . . . . . . . . 1 Matter Fused 4 | . . 1 . . . . . . . . . 1 . 2 . . . Heat Flow Errors 2 | . . . . . . 1 . . . . . 1 . . . . . Energy Discharges 6 | . . 1 . . 1 . . . . . . 3 1 . . . . Data Loss (minor) 4 | . . 1 . . . . 1 . . . . 1 . 1 . . . Data Loss (major) 1 | . . . . . . . . . . . . . . . 1 . . Overload Shots . | . . . . . . . . . . . . . . . . . . Overflow Damage 42 | . . . . . . . . . . 42 . . . . . . . Projectiles . | . . . . . . . . . . . . . . . . . . Explosions . | . . . . . . . . . . . . . . . . . . Melee 42 | . . . . . . . . . . 42 . . . . . . . Knockbacks . | . . . . . . . . . . . . . . . . . . Impact . | . . . . . . . . . . . . . . . . . . Kinetic . | . . . . . . . . . . . . . . . . . . Secondary . | . . . . . . . . . . . . . . . . . . Self-Inflicted Damage 1 | . . . . . . . . . . . . . . . . . 1 Shots . | . . . . . . . . . . . . . . . . . . Rammed 2 | . . . . . . . . . . . . . . . . . 2 Targets Rammed 2 | . . . . . . . . . . . . . . . . . 2 Kicked . | . . . . . . . . . . . . . . . . . . Crushed . | . . . . . . . . . . . . . . . . . . Highest Temperature 214 | . . . 60 . 154 214 . . . . . 184 . . . . . Average Temperature 86 | . . . 31 . 87 107 . . . . . 113 . . . . . Received Heat Transfer 286 | . . . . . . . . . . . 9 27 . . 84 . 166 Siege Activations . | . . . . . . . . . . . . . . . . . . Martial Activations . | . . . . . . . . . . . . . . . . . . Shielding Activations . | . . . . . . . . . . . . . . . . . . Robots Disrupted . | . . . . . . . . . . . . . . . . . . Combat Hostiles . | . . . . . . . . . . . . . . . . . . Robots Corrupted . | . . . . . . . . . . . . . . . . . . Combat Hostiles . | . . . . . . . . . . . . . . . . . . Parts Fried . | . . . . . . . . . . . . . . . . . . Impact Corruptions . | . . . . . . . . . . . . . . . . . . Robots Melted . | . . . . . . . . . . . . . . . . . . Combat Hostiles . | . . . . . . . . . . . . . . . . . . Parts Melted . | . . . . . . . . . . . . . . . . . . Heat Transferred 100 | . . . . . 100 . . . . . . . . . . . . Parts Sabotaged . | . . . . . . . . . . . . . . . . . . Parts Stolen . | . . . . . . . . . . . . . . . . . . Parts Stripped . | . . . . . . . . . . . . . . . . . . Power Chain Reactions . | . . . . . . . . . . . . . . . . . . Alert | -11 -10 -10 -9 -6 -6 -6 -6 -5 -5 -5 -5 -5 -5 -4 -4 -3 -3 ------- Run | Yrd Mat Sub Scr Fac Was Fac DSF Fac Was Fac Upp Upp Zhi Pro Fac Res Tes Maximum Alert Level 2 | . . . . . . . . . . 2 . . . . 1 . . Low Security (%) 91 | 100 100 . . 100 100 100 100 100 100 35 . . . . 96 100 100 Level 1 6 | . . . . . . . . . . 54 . . . . 3 . . Level 2 1 | . . . . . . . . . . 10 . . . . . . . Level 3 . | . . . . . . . . . . . . . . . . . . Level 4 . | . . . . . . . . . . . . . . . . . . Level 5 . | . . . . . . . . . . . . . . . . . . High Security . | . . . . . . . . . . . . . . . . . . Max Security . | . . . . . . . . . . . . . . . . . . Peak Influence 410 | . 30 . . . . . 3 . . 410 . . . . 219 82 70 Initial 57 | . . . . . . . 3 . . . . . . . . 57 . Average 48 | . 3 . . . . . 2 . . 259 . . . . 86 45 17 Influence Increases 1640 | . 49 . . . . 5 . . . 496 220 341 . 37 304 45 143 Destroy 0b10 Robot/C 500 | . 20 . . . . . . . . 180 100 180 . 20 . . . Destroy 0b10 Robot/NC 20 | . 5 . . . . . . . . 15 . . . . . . . Destroy Leader 72 | . 12 . . . . . . . . 40 10 . . 10 . . . Allied During Kill 417 | . . . . . . . . . . 139 110 161 . 7 . . . Successful Hack 98 | . 12 . . . . 5 . . . 28 . . . . . . 53 Disable Machine 30 | . . . . . . . . . . 30 . . . . . . . Destroy Structure 68 | . . . . . . . . . . 64 . . . . 4 . . Partial Spotted 75 | . . . . . . . . . . . . . . . 30 . 45 Lose Combat Pursuer 360 | . . . . . . . . . . . . . . . 270 45 45 Influence Decreases 1640 | . 49 . . . . . 5 . . 140 252 283 382 37 195 154 143 Entered New Map 631 | . . . . . . . 2 . . . 132 63 382 . . 52 . Time Decay 681 | . 49 . . . . . . . . 90 110 180 . 17 115 40 80 Lost Part 236 | . . . . . . . 3 . . 10 10 20 . . 80 50 63 Lost Ally 92 | . . . . . . . . . . 40 . 20 . 20 . 12 . Squads Dispatched 10 | . 1 . . . . . 1 . . 2 . 1 . . 3 1 1 Investigation 3 | . 1 . . . . . . . . . . . . . 1 1 . Extermination 2 | . . . . . . . . . . 1 . . . . 1 . . Reinforcement 4 | . . . . . . . 1 . . 1 . . . . 1 . 1 Assault 1 | . . . . . . . . . . . . 1 . . . . . Garrison . | . . . . . . . . . . . . . . . . . . Intercept . | . . . . . . . . . . . . . . . . . . Searches Triggered . | . . . . . . . . . . . . . . . . . . Construction Impeded . | . . . . . . . . . . . . . . . . . . Haulers Reinforced . | . . . . . . . . . . . . . . . . . . Active Scanning Responses . | . . . . . . . . . . . . . . . . . . Cargo Convoy Interrupts . | . . . . . . . . . . . . . . . . . . Stealth | -11 -10 -10 -9 -6 -6 -6 -6 -5 -5 -5 -5 -5 -5 -4 -4 -3 -3 --------- Run | Yrd Mat Sub Scr Fac Was Fac DSF Fac Was Fac Upp Upp Zhi Pro Fac Res Tes Distress Signals 9 | . 3 . . . . . . . . . . . . . 4 . 2 Communications Jammed . | . . . . . . . . . . . . . . . . . . Distress Signals . | . . . . . . . . . . . . . . . . . . Times Spotted 103 | . 1 1 . . 5 . 3 . . 12 5 8 . . 39 13 16 Peak Tracking Total 22 | . . 1 . . 5 . 3 . . 6 5 5 . . 22 11 13 Tactical Retreats 9 | . . . . . . . . . . . . . . . 7 1 1 Traps | -11 -10 -10 -9 -6 -6 -6 -6 -5 -5 -5 -5 -5 -5 -4 -4 -3 -3 ------- Run | Yrd Mat Sub Scr Fac Was Fac DSF Fac Was Fac Upp Upp Zhi Pro Fac Res Tes Traps Triggered 12 | . 2 1 . 1 . . . 1 . 3 . . . . 3 1 . Indirectly . | . . . . . . . . . . . . . . . . . . Trap Hack Attempts . | . . . . . . . . . . . . . . . . . . Triggered . | . . . . . . . . . . . . . . . . . . Disarmed . | . . . . . . . . . . . . . . . . . . Reprogrammed . | . . . . . . . . . . . . . . . . . . Reused . | . . . . . . . . . . . . . . . . . . Traps Extracted . | . . . . . . . . . . . . . . . . . . Installed . | . . . . . . . . . . . . . . . . . . Triggered . | . . . . . . . . . . . . . . . . . . Machines | -11 -10 -10 -9 -6 -6 -6 -6 -5 -5 -5 -5 -5 -5 -4 -4 -3 -3 ---------- Run | Yrd Mat Sub Scr Fac Was Fac DSF Fac Was Fac Upp Upp Zhi Pro Fac Res Tes Machines Disabled 2 | . . . . . . . . . . 2 . . . . . . . Max in Single Turn . | . . . . . . . . . . . . . . . . . . Machines Repaired . | . . . . . . . . . . . . . . . . . . Machines Dismantled . | . . . . . . . . . . . . . . . . . . Machines Sabotaged . | . . . . . . . . . . . . . . . . . . Overloaded Fab Kills . | . . . . . . . . . . . . . . . . . . Hacking | -11 -10 -10 -9 -6 -6 -6 -6 -5 -5 -5 -5 -5 -5 -4 -4 -3 -3 --------- Run | Yrd Mat Sub Scr Fac Was Fac DSF Fac Was Fac Upp Upp Zhi Pro Fac Res Tes Machines Accessed 30 | . 4 . 4 . . 1 . . . 4 1 1 4 . 6 . 5 Terminals 12 | . 4 . . . . 1 . . . 2 . . . . 2 . 3 Fabricators 4 | . . . . . . . . . . 1 . . . . 1 . 2 Repair Stations 1 | . . . . . . . . . . 1 . . . . . . . Recycling Units 2 | . . . . . . . . . . . . . . . 2 . . Scanalyzers 1 | . . . . . . . . . . . . . . . 1 . . Garrison Access . | . . . . . . . . . . . . . . . . . . Total Hacks 74 | . 14 . 10 . . 2 . . . 9 1 1 17 . 10 . 10 Successful 59 | . 8 . 10 . . 1 . . . 7 1 1 17 . 8 . 6 Failed 14 | . 6 . . . . 1 . . . 2 . . . . 1 . 4 Catastrophic . | . . . . . . . . . . . . . . . . . . Database Lockouts 1 | . . . . . . . . . . . . . . . 1 . . Manual 19 | . 8 . . . . . . . . 6 . . . . 1 . 4 Terminals 33 | . 14 . . . . 2 . . . 6 . . . . 3 . 8 Fabricators 6 | . . . . . . . . . . 2 . . . . 2 . 2 Repair Stations 1 | . . . . . . . . . . 1 . . . . . . . Recycling Units 3 | . . . . . . . . . . . . . . . 3 . . Scanalyzers 2 | . . . . . . . . . . . . . . . 2 . . Garrison Access . | . . . . . . . . . . . . . . . . . . Terminal Hacks 42 | . 4 . 10 . . 1 . . . 2 1 1 17 . 3 . 3 Record 17 | . . . 9 . . . . . . . 1 1 5 . . . 1 Part Schematic 5 | . 1 . . . . . . . . . . . 4 . . . . Robot Analysis 4 | . . . . . . . . . . . . . 4 . . . . Prototype ID Bank 4 | . . . . . . . . . . . . . 4 . . . . Open DSF 2 | . . . . . . 1 . . . . . . . . 1 . . Level Access Points 1 | . . . . . . . . . . 1 . . . . . . . Branch Access Points 2 | . 1 . . . . . . . . . . . . . . . 1 Emergency Access Points 1 | . . . . . . . . . . . . . . . 1 . . Dispatch Records 1 | . . . . . . . . . . . . . . . 1 . . Registered Components 2 | . 1 . . . . . . . . 1 . . . . . . . Zone Layout 1 | . 1 . . . . . . . . . . . . . . . . Proto ID Catalog 1 | . . . 1 . . . . . . . . . . . . . . Protovariant Controls 1 | . . . . . . . . . . . . . . . . . 1 Fabricator Hacks 1 | . . . . . . . . . . . . . . . 1 . . Network Status 1 | . . . . . . . . . . . . . . . 1 . . Repair Station Hacks . | . . . . . . . . . . . . . . . . . . Recycling Unit Hacks 2 | . . . . . . . . . . . . . . . 2 . . Retrieve Components 2 | . . . . . . . . . . . . . . . 2 . . Scanalyzer 1 | . . . . . . . . . . . . . . . 1 . . Retrieve Study 1 | . . . . . . . . . . . . . . . 1 . . Garrison Access Hacks . | . . . . . . . . . . . . . . . . . . Unauthorized Hacks 13 | . 4 . . . . . . . . 5 . . . . 1 . 3 Terminals 7 | . 4 . . . . . . . . 2 . . . . . . 1 Botnet 7 | . 4 . . . . . . . . 2 . . . . . . 1 Fabricators 5 | . . . . . . . . . . 2 . . . . 1 . 2 Fabnet 4 | . . . . . . . . . . 1 . . . . 1 . 2 Haulers 1 | . . . . . . . . . . 1 . . . . . . . Repair Stations 1 | . . . . . . . . . . 1 . . . . . . . Mechanics 1 | . . . . . . . . . . 1 . . . . . . . Recycling Units . | . . . . . . . . . . . . . . . . . . Scanalyzers . | . . . . . . . . . . . . . . . . . . Garrison Access . | . . . . . . . . . . . . . . . . . . Data Cores Recovered 1 | . . . . . . . . . . 1 . . . . . . . Used 1 | . . . . . . . . . . 1 . . . . . . . Hacking Detections 13 | . 4 . . . . . . . . 2 . . . . 2 . 5 Full Trace Events 1 | . 1 . . . . . . . . . . . . . . . . Feedback Events . | . . . . . . . . . . . . . . . . . . Feedback Blocked . | . . . . . . . . . . . . . . . . . . Robot Schematics Acquired . | . . . . . . . . . . . . . . . . . . Robots Built . | . . . . . . . . . . . . . . . . . . Authchips . | . . . . . . . . . . . . . . . . . . Time . | . . . . . . . . . . . . . . . . . . Total Robot Build Rating . | . . . . . . . . . . . . . . . . . . Part Schematics Acquired 5 | . 1 . . . . . . . . . . . 4 . . . . Parts Built . | . . . . . . . . . . . . . . . . . . Authchips . | . . . . . . . . . . . . . . . . . . Time . | . . . . . . . . . . . . . . . . . . Total Part Build Rating . | . . . . . . . . . . . . . . . . . . Part Studies Acquired 1 | . . . . . . . . . . . . . . . 1 . . Parts Repaired . | . . . . . . . . . . . . . . . . . . Time . | . . . . . . . . . . . . . . . . . . Parts Recycled . | . . . . . . . . . . . . . . . . . . Recycled Matter . | . . . . . . . . . . . . . . . . . . Retrieved Matter . | . . . . . . . . . . . . . . . . . . Retrieved Components 4 | . . . . . . . . . . . . . . . 4 . . Parts Scanalyzed . | . . . . . . . . . . . . . . . . . . Part Schematics Acquired . | . . . . . . . . . . . . . . . . . . Parts Damaged . | . . . . . . . . . . . . . . . . . . Bothacking | -11 -10 -10 -9 -6 -6 -6 -6 -5 -5 -5 -5 -5 -5 -4 -4 -3 -3 ------------ Run | Yrd Mat Sub Scr Fac Was Fac DSF Fac Was Fac Upp Upp Zhi Pro Fac Res Tes Used RIF Installer . | . . . . . . . . . . . . . . . . . . Robots Hacked 3 | . . . . . . . . . . . . . . . . 2 1 Non-combat . | . . . . . . . . . . . . . . . . . . Combat 3 | . . . . . . . . . . . . . . . . 2 1 Robot Hacks Applied 1 | . . . . . . . . . . . . . . . . . 1 find_scanalyzer 1 | . . . . . . . . . . . . . . . . . 1 Relay Couplers Released . | . . . . . . . . . . . . . . . . . . Fabnet Peak Effective % 4 | . . . . . . . . . . . . . . 3 3 4 4 Autooverrided 2 | . . . . . . . . . . . . . . . . 2 . Robots Rewired . | . . . . . . . . . . . . . . . . . . Allies Hacked . | . . . . . . . . . . . . . . . . . . Hacks Repelled . | . . . . . . . . . . . . . . . . . . Allies | -11 -10 -10 -9 -6 -6 -6 -6 -5 -5 -5 -5 -5 -5 -4 -4 -3 -3 -------- Run | Yrd Mat Sub Scr Fac Was Fac DSF Fac Was Fac Upp Upp Zhi Pro Fac Res Tes Total Allies 22 | . . . . . . . . . 20 . . . . . . 2 . Largest Group 20 | . . . . . . . . . 20 20 11 9 7 7 . 1 . Highest-Rated Group 753 | . . . . . . . . . 753 752 487 416 326 326 . 30 . Highest-Rated Ally 50 | . . . . . . . . . 50 50 50 50 50 50 . 30 . Total Orders . | . . . . . . . . . . . . . . . . . . Ally Attacks 103 | . . . . . . . . . . 39 4 39 . 20 . 1 . Total Damage 4124 | . . . . . . . . . . 1925 664 1038 . 477 . 20 . Kills 27 | . . . . . . . . . . 13 6 7 . 1 . . . Allies Corrupted . | . . . . . . . . . . . . . . . . . . Allies Melted . | . . . . . . . . . . . . . . . . . . Intel | -11 -10 -10 -9 -6 -6 -6 -6 -5 -5 -5 -5 -5 -5 -4 -4 -3 -3 ------- Run | Yrd Mat Sub Scr Fac Was Fac DSF Fac Was Fac Upp Upp Zhi Pro Fac Res Tes Active Infowar (turns) 520 | . . . . 295 54 . . . . . . . . . 120 . 51 Optics 51 | . . . . . . . . . . . . . . . . . 51 Sensors 26 | . . . . . . . . . . . . . . . 26 . . Decoding 349 | . . . . 295 54 . . . . . . . . . . . . Cloaking 94 | . . . . . . . . . . . . . . . 94 . . Robot Analysis Total 4 | . . . . . . . . . . . . . 4 . . . . Derelict Logs Recovered 5 | . . 1 1 . . . . . . . 1 . . 2 . . . Drone Launches . | . . . . . . . . . . . . . . . . . . Drone Recoveries . | . . . . . . . . . . . . . . . . . . Decoded 0b10 Intel 4 | . . . . 4 . . . . . . . . . . . . . Traps 1 | . . . . 1 . . . . . . . . . . . . . Emergency Access 3 | . . . . 3 . . . . . . . . . . . . . Exploration | -11 -10 -10 -9 -6 -6 -6 -6 -5 -5 -5 -5 -5 -5 -4 -4 -3 -3 ------------- Run | Yrd Mat Sub Scr Fac Was Fac DSF Fac Was Fac Upp Upp Zhi Pro Fac Res Tes Turns Passed 6121 | 70 377 275 2872 298 69 43 55 20 195 234 237 371 109 236 327 93 240 Spaces Moved 6049 | 41 201 164 1783 172 70 78 64 43 262 381 294 533 139 435 705 191 493 Core 168 | 5 . . . . 48 67 1 . . . . . . . . 12 35 Treads 2395 | 36 201 164 1783 172 22 . 17 . . . . . . . . . . Legs . | . . . . . . . . . . . . . . . . . . Wheels 1 | . . . . . . . . . . . . . . . . . 1 Hover 1135 | . . . . . . . . . 43 . . . 60 208 705 119 . Flight 2350 | . . . . . . 11 46 43 219 381 294 533 79 227 . 60 457 Fastest Speed 27 | 50 160 160 160 160 50 40 40 40 40 34 37 37 40 40 27 38 37 Average Speed 88 | 146 160 160 160 160 84 48 72 40 64 37 37 38 40 40 39 42 38 Slowest Speed 160 | 160 160 160 160 160 160 50 160 40 160 40 37 40 50 42 50 50 90 Overloaded Moves 168 | . . . . . . . . . . . . . . . 168 . . Propulsion Burnouts 1 | . . . . . . . . . . . . . . . 1 . . Robots Hopped 9 | . . . . . . . . . . . . 1 . . . 1 7 Potential Cave-ins . | . . . . . . . . . . . . . . . . . . Cave-ins Triggered . | . . . . . . . . . . . . . . . . . . Teleports 1 | . . . . . . . . . . . . . . . 1 . . Exploration Rate (%) 42 | 5 56 15 92 5 71 3 58 1 95 17 51 68 60 65 26 12 58 Regions Visited 17 Branch Regions 7 Pre-discovered Areas 5 | . . 1 . . . . . . . . 1 . 3 . . . . Known Exits Taken 4 | . . . . . . 1 . . . . . . . 1 1 1 . Unknown Exits Taken 8 | 1 1 1 1 . . . . . . 1 1 1 1 . . . . Scrap Searched 20 | . . 8 6 . . . . . . . 1 4 . 1 . . . Spaces Dug 4 | . . . . . . . . . . . 1 1 . . 2 . . Terrain Destroyed 4 | . . . . . . . . . . . 1 1 . . 2 . . Melee 4 | . . . . . . . . . . . 1 1 . . 2 . . Projectile . | . . . . . . . . . . . . . . . . . . AOE . | . . . . . . . . . . . . . . . . . . Terrain Rammed . | . . . . . . . . . . . . . . . . . . Walls Destroyed . | . . . . . . . . . . . . . . . . . . Machines Disabled . | . . . . . . . . . . . . . . . . . . Actions | -11 -10 -10 -9 -6 -6 -6 -6 -5 -5 -5 -5 -5 -5 -4 -4 -3 -3 --------- Run | Yrd Mat Sub Scr Fac Was Fac DSF Fac Was Fac Upp Upp Zhi Pro Fac Res Tes Total 6755 | 49 253 174 1801 195 74 81 72 46 289 463 421 683 190 493 736 199 536 Wait 472 | . 33 . . . . . . . 24 56 123 137 42 52 4 1 . Move 6016 | 40 200 163 1782 172 69 77 63 43 261 380 293 530 138 434 704 188 479 Hop 9 | . . . . . . . . . . . . 1 . . . 1 7 Pick Up 54 | 3 14 2 6 4 . . 4 . 1 3 1 2 3 2 4 . 5 Fast Attach 49 | 5 1 2 2 5 . 2 2 . 1 11 . . 3 . 9 2 4 Attach 36 | 1 . . . 8 . 2 1 3 . 2 1 2 1 . 5 3 7 Detach 11 | . . . . 1 . . . . 2 . . . . . 1 3 4 Swap 7 | . 1 . 3 1 . . . . . . . . . 2 . . . Drop 43 | . 2 5 7 4 2 . 2 . . 7 2 1 3 3 . . 5 Fire 10 | . 2 2 1 . 3 . . . . . . . . . . 1 1 Melee 22 | . . . . . . . . . . 4 1 10 . . 7 . . Ram 2 | . . . . . . . . . . . . . . . . . 2 Kick . | . . . . . . . . . . . . . . . . . . Crush . | . . . . . . . . . . . . . . . . . . Escape Stasis 24 | . . . . . . . . . . . . . . . 2 . 22 Rewire . | . . . . . . . . . . . . . . . . . . Trap . | . . . . . . . . . . . . . . . . . . Miscellaneous . | . . . . . . . . . . . . . . . . . . Route ------- -11/Scrapyard -10/Materials (discovered 4 exits: [*Mat x2] / Min / [*Sub]) -10/Subcaves (discovered 2 exits: *Scr x2) -9/Scraptown (discovered 2 exits: [*Fac x2]) -6/Factory -6/Waste -6/Factory -6/DSF -5/Factory -5/Waste -5/Factory (discovered 5 exits: *Fac x4 / *Upp) -5/Upper Caves -5/Upper Caves (discovered 2 exits: *Fac / *Zhi) -5/Zhirov -4/Proximity Caves -4/Factory -3/Research -3/Testing History --------- Turn | Location | Event 9 | -11/Scrapyard | Discovered new exit (range 15) 71 | -11/Scrapyard | Entered Materials 72 | -10/Materials | Met a group of wandering Federalists 123 | -10/Materials | Identified exit to Mines 162 | -10/Materials | Discovered new exit (range 12) 251 | -10/Materials | Discovered new exit (range 16) 314 | -10/Materials | Build established: Mutant 396 | -10/Materials | Discovered new exit (range 11) 448 | -10/Materials | Entered Subcaves 449 | -10/Subcaves | Continued accompanying wandering Federalists (3) 449 | -10/Subcaves | Approached by a straggling Scientist 528 | -10/Subcaves | Shifting Twisted Machinery released Sub. Beam Cannon 573 | -10/Subcaves | Learned location of Storage (-9) 578 | -10/Subcaves | Disturbed a concealed Subdweller 598 | -10/Subcaves | Shifting Twisted Machinery released Sub. Laser 723 | -10/Subcaves | Entered Scraptown 723 | -9/Scraptown | System corruption cleaned by C-Scrubber 909 | -9/Scraptown | Visited Awakened 923 | -9/Scraptown | Visited Red Mages 1254 | -9/Scraptown | Visited UFD Registry 1254 | -9/Scraptown | Registered with UFD as "Bulletmachine" 1278 | -9/Scraptown | Heard Great Nut preacher, LISTEN AND RECITE! 1286 | -9/Scraptown | Visited CR-KLE's Repair Center 1315 | -9/Scraptown | Visited TADAMA 1368 | -9/Scraptown | Visited Cyclists 1394 | -9/Scraptown | Entered Cyclist Reading Room 1686 | -9/Scraptown | Discovered new exit (range 13) 1771 | -9/Scraptown | Scanned Subdweller tech in exchange for log data 1776 | -9/Scraptown | Learned Factory security intel 1822 | -9/Scraptown | Visited Comm Corps 1891 | -9/Scraptown | Visited IN-MT5's Study 2118 | -9/Scraptown | Visited Science Guys 2215 | -9/Scraptown | Visited Scrapoid Research Area 2259 | -9/Scraptown | Visited Abandonware Association 2276 | -9/Scraptown | Learned abandonware demo "HACKBUD.EXE" 2276 | -9/Scraptown | Learned abandonware demo "TRNCOAT.EXE" 2319 | -9/Scraptown | Visited Research Penetration Think Tank 2363 | -9/Scraptown | Visited Chapter 10 2420 | -9/Scraptown | Delivered Scrap Shield to a Scientist 2566 | -9/Scraptown | Visited Infowarlord's Domain 2605 | -9/Scraptown | Visited Curators Association 2664 | -9/Scraptown | Visited LU-1G1's Boring Crew 3226 | -9/Scraptown | CR-KLE repaired 5 parts 3433 | -9/Scraptown | Visited DA-N13 Charitable Foundation 3441 | -9/Scraptown | Found DCF Scrap (28 items) 3583 | -9/Scraptown | Discovered new exit (range 5) 3595 | -9/Scraptown | Entered Factory 3595 | -6/Factory | Evolved 8 slots: Propulsion x2, Utility x4, Weapon x2 3888 | -6/Factory | Build established: Derelict-Gunner 3893 | -6/Factory | Sucked down chute 3893 | -6/Factory | Entered Waste 3908 | -6/Waste | EMP discharged 3916 | -6/Waste | Spotted C-40 Crusher 3928 | -6/Waste | Spotted C-40 Crusher 3929 | -6/Waste | Crushed by Compactor (1 part destroyed, 1 dropped) 3932 | -6/Waste | Crushed by Compactor (1 part destroyed, 2 dropped) 3935 | -6/Waste | Crushed by Compactor (1 part destroyed, 1 dropped) 3937 | -6/Waste | Spotted C-40 Crusher 3938 | -6/Waste | Crushed by Compactor (1 part destroyed, 1 dropped) 3944 | -6/Waste | Spotted C-40 Crusher 3947 | -6/Waste | Crushed by Compactor (1 part destroyed, 1 dropped) 3955 | -6/Waste | Spotted C-40 Crusher 3956 | -6/Waste | Discovered new exit (range 11) 3960 | -6/Waste | Identified exit to Factory 3962 | -6/Waste | Entered Factory 3978 | -6/Factory | Lost 5 parts (2n1u2w) 4005 | -6/Factory | Identified exit to DSF 4005 | -6/Factory | Entered DSF 4045 | -6/DSF | Additional patrols routed to DSF 4052 | -6/DSF | Discovered new exit (range 12) 4060 | -6/DSF | Entered Factory 4060 | -5/Factory | Evolved 2 slots: Propulsion x1, Utility x1 4080 | -5/Factory | Sucked down chute 4080 | -5/Factory | Entered Waste 4081 | -5/Waste | Joined by Warlord forces that had cleared the area 4206 | -5/Waste | Discovered new exit (range 11) 4275 | -5/Waste | Entered Factory 4275 | -5/Factory | Accompanied by 20 allies 4310 | -5/Factory | Spotted B-75 Beast 4334 | -5/Factory | Allies destroyed B-75 Beast 4364 | -5/Factory | Build established: Hacker-Mutant 4365 | -5/Factory | Lost 6 allies 4366 | -5/Factory | Found Prototype Processor 4435 | -5/Factory | Identified exit to Factory 4447 | -5/Factory | Discovered new exit (range 10) 4509 | -5/Factory | Entered Upper Caves 4509 | -5/Upper Caves | Accompanied by 11 allies 4510 | -5/Upper Caves | Encountered a Warlord checkpoint 4511 | -5/Upper Caves | UFD Scientist delivered a prototype 4513 | -5/Upper Caves | Found Prototype Protection 4583 | -5/Upper Caves | Entered a destroyed Warlord outpost 4713 | -5/Upper Caves | Discovered new exit (range 9) 4746 | -5/Upper Caves | Entered another Upper Caves area 4746 | -5/Upper Caves | Accompanied by 9 allies 4746 | -5/Upper Caves | Discovered exit to Factory (range 6) 4773 | -5/Upper Caves | Entered a destroyed Warlord outpost 4894 | -5/Upper Caves | Attracted the attention of an 0b10 outpost 4912 | -5/Upper Caves | Identified Exp. Targeting Computer 5070 | -5/Upper Caves | Discovered new exit (range 3) 5117 | -5/Upper Caves | Entered Zhirov 5117 | -5/Zhirov | Accompanied by 7 allies 5117 | -5/Zhirov | Discovered new exit (range 3) 5125 | -5/Zhirov | Met Zhirov 5133 | -5/Zhirov | Learned location of Testing (-3) 5133 | -5/Zhirov | Learned location of Quarantine (-2) 5133 | -5/Zhirov | Learned location of Command (-1) 5136 | -5/Zhirov | Zhirov requested help retrieving the SGEMP Prototype 5142 | -5/Zhirov | Found Alien Artifact 5168 | -5/Zhirov | Found Alien Artifact 5226 | -5/Zhirov | Entered Proximity Caves 5226 | -4/Proximity Caves | Accompanied by 7 allies 5255 | -4/Proximity Caves | Learned Research terminal intel 5462 | -4/Proximity Caves | Entered Factory 5462 | -4/Factory | Evolved 2 slots: Utility x2 5468 | -4/Factory | Central database locked down 5484 | -4/Factory | Noticed UFD Elites at a Recycling Unit 5567 | -4/Factory | Identified Enh. Scrap Shield 5652 | -4/Factory | Identified Transdimensional Reconstructor 5652 | -4/Factory | Warped through subspace 5653 | -4/Factory | Identified Integrated Dissipator 5653 | -4/Factory | Installed Integrated Dissipator, increased core heat dissipation (+20) 5674 | -4/Factory | Spotted B-86 Titan 5716 | -4/Factory | Lost 4 parts (1n2u1w) 5779 | -4/Factory | Discovered new exit (range 12) 5789 | -4/Factory | Identified exit to Research 5789 | -4/Factory | Entered Research 5789 | -3/Research | Evolved 2 slots: Propulsion x1, Utility x1 5790 | -3/Research | Loaded intel: 22 terminal locations 5869 | -3/Research | Local machine network offline 5879 | -3/Research | Discovered new exit (range 10) 5881 | -3/Research | Identified exit to Testing 5882 | -3/Research | Entered Testing 5911 | -3/Testing | Lost 8 parts (1p5n2u) 6064 | -3/Testing | Spotted Striker 6065 | -3/Testing | Spotted Striker 6080 | -3/Testing | Spotted Alpha 7 6086 | -3/Testing | Core integrity fell below 50% 6094 | -3/Testing | Stole the SGEMP Prototype 6096 | -3/Testing | Scanned by Researcher 6108 | -3/Testing | Core integrity fell below 20% 6122 | -3/Testing | Destroyed by Striker with Plasma Lance Last Messages --------------- C-55 Analyst is analyzing... Held in stasis. C-55 Analyst is analyzing... Hacking Suite destroyed. M-36 Artificer repairs G-73 Enforcer. Held in stasis. C-55 Analyst is analyzing... Held in stasis. C-55 Analyst is analyzing... Critical hit (Impale). M-36 Artificer repairs G-67 Veteran. Held in stasis. C-55 Analyst is analyzing... Held in stasis. C-55 Analyst is analyzing... Critical hit (Impale). Held in stasis. C-55 Analyst is analyzing... M-36 Artificer repairs G-67 Veteran. Critical hit (Impale). Map ----- +----------------------------------------------------+ | | | | | | | | | | | | | | | | | | | | | | | | | | | | | | | | | | | | | | | | | ?????????????????????????????????????? | | ?????????????????????????????????????? | | ??????##########?????????????????????? | | ??????#""""""""#?????????????????????? | | ??????#" """""#?????????????????????? | | ??????#" KK@"#???##########????????? | | ?????## cc""#???#= #????????? | | ?????# g"""#####% %""" #????????? | | ?????# 7g"""## " %"R" #????????? | | ?????####/g###### / % =" #????????? | | ???????## c##???# # ! #????????? | | ???????# m #??## # """ #????????? | | ???????## ##??#" # """ #????????? | | ????????# #???## # """ #????????? | | ????????# ###### # #????????? | | ????????# ##########????????? | | ????????# ###########???????? | | ????????# ]/! # ! #???????? | | ????????# ]/ !# #???????? | | ????????# /! ! %# """ #???????? | | ???????## # """ """ #???????? | | ???????# # """ "" #???????? | | ???????# # """ F"" #???????? | | ???????# + """ #???????? | | ???????# # #???????? | | ???????########## ##############????? | | ?????????# # ????? | | ?????????# + ???? | | ?????????# "" # ???? | | ?????????# S"" + ???? | +----------------------------------------------------+ Best States ------------- Heat Dissipation 82 Energy Generation 23 Energy Capacity 650 Matter Stores 300 Matter Capacity 300 Sight Range 22 Robot Scan Range 15 Terrain Scan Density 10 Cloak Strength 2 Armor Coverage 800 Evasion (%) 75 Targeting Accuracy 5 Melee Accuracy 24 Target Analysis 6 Armor Integrity Analysis 30 Recoil Reduction 4 Offensive Hacking 34 Defensive Hacking 14 Item Schematics ----------------- Assault Rifle | -10/Materials | Hacked Exp. Heat Sink | -5/Zhirov | Free Assault Drone Bay | -5/Zhirov | Free Exp. Optical Array | -5/Zhirov | Free Imp. Arc Thrower | -5/Zhirov | Free Robot Schematics ------------------ None Fabricated ------------ Nothing Repaired ---------- Nothing Studied --------- Nuclear Pulse Thruster | -4/Factory | Hacked Alien Tech Used ----------------- Transdimensional Reconstructor Integrated Dissipator Achievements -------------- Junior Dev Strength In Numbers Challenges ------------ None Game ------ Seed SuperquantumScrapoidPick Manual? 0 Play Time 00:55:09 Cumulative 95.3 hours Start 2025.10.25 @ 16:17:53 End 2025.10.25 @ 17:12:59 Sessions 1 Manual Loads 0 Difficulty Rogue Special Mode None Game No. 112 Rogue 112 Adventurer 0 Explorer 0 Win Type - Total 1 Types 1/0/0/0/0/0/0/0/0/0 Lore% 70 Gallery% 55 Achievement% 35 Wizard Run 0 Options --------- Layout 1 ASCII 0 Keyboard 0 Movement Mouse Keybinds 0 Fullscreen 2 Font 24/Smallcaps Map View 50x35 Zoom Use 0% Tactical HUD 0 Map Filters NONE Filters NONE Steam 1 RUN: d04e9730-aaba-4e11-a205-0df5cf9470b8